[Event "22nd Alekhine FIDE 2018"]
[Site "Voronezh"]
[Date "2018.06.18"]
[Round "7"]
[White "Abramov, Ilya"]
[Black "Kolyuzhnov, Vladislav"]
[Result "1-0"]
[ECO "A40"]
[WhiteElo "2089"]
[BlackElo "1986"]
[Annotator "NA RC"]
[PlyCount "70"]
[EventDate "2018.??.??"]
[EventType "swiss"]
[EventCountry "RUS"]
[SourceTitle "playchess.com"]
[Source "ChessBase"]
[SourceQuality "1"]
[TimeControl "5400+30"]

{[%evp 8,43,52,32767,32767,32767,32767,20,77,58,85,70,63,71,75,56,92,16,16,25,66,37,41,41,41,39,60,34,75,76,82,64,81,31,46,48,48,54]} 1. d4 {[%emt 0:00:00]} Nf6 {[%emt 0:00:06]} 2. c4 {[%emt 0:00:00]} e6 {[%emt 0:00:15]} 3. g3 {[%emt 0:00:00]} c5 {[%emt 0:02:45]} 4. Nf3 {[%emt 0:00:00]} b6 {[%emt 0:04:39]} 5. Bg2 {[%emt 0:00:38]} Bb7 {[%emt 0:00:21]} 6. O-O {[%emt 0:00:18]} Be7 {[%emt 0:01:00]} 7. Nc3 {[%emt 0:02:16]} (7. d5 $5) 7... O-O {[%emt 0:00:22] [#]} (7... cxd4 $11 {remains equal.} 8. Qxd4 (8. Nxd4 Bxg2 9. Kxg2 Qc8 $11) 8... Nc6) 8. d5 $1 {[%emt 0:02:06]} exd5 {[%emt 0:03:48]} 9. cxd5 {[%emt 0:00:19]} d6 {[%emt 0:00:24]} 10. e4 {[%emt 0:00:01] LiveBook: 4 Games} Nbd7 {[%emt 0:03:11] E18: Queen's Indian: Old Main Line (4 g3 Bb7 5 Bg2 Be7 6 0-0 0-0 7 Nc3)} (10... Re8 11. e5 dxe5 12. Nxe5 Bf8 13. Bf4 Na6 14. Qa4 Nb4 15. Rad1 Nh5 16. a3 Nxf4 17. gxf4 a5 18. d6 Bxg2 19. Kxg2 Qh4 20. d7 Rxe5 21. fxe5 Qg4+ {½-½ (21) Wells,P (2448)-Rudd,J (2247) Cardiff 2015}) 11. Bf4 {[%emt 0:03:48]} a6 {[%emt 0:04:35]} 12. h3 $146 {[%emt 0:02:19]} ({Predecessor:} 12. e5 dxe5 13. Nxe5 Nxe5 14. d6 Bxd6 15. Bxb7 Ra7 16. Bxe5 Bxe5 17. Qxd8 Rxd8 {½-½ (61) Vargas Drechsler,C (1848)-Velez Romero,J (1975) Barcelona 2013}) 12... b5 {[%emt 0:06:45]} 13. Re1 {[%emt 0:00:05]} b4 {[%emt 0:06:02]} 14. Nb1 {[%emt 0:00:02]} Re8 {[%emt 0:01:29]} 15. Nbd2 {[%emt 0:00:35]} Nb6 {[%emt 0:03:21]} 16. g4 {[%emt 0:03:01]} Rc8 {[%emt 0:02:27]} 17. Bf1 {[%emt 0:02:28]} Bf8 {[%emt 0:03:25]} 18. a3 {[%emt 0:02:24]} a5 {[%emt 0:02:01]} 19. axb4 {[%emt 0:04:28]} axb4 {[%emt 0:00:04]} 20. Ra7 {[%emt 0:00:53]} (20. Bb5 $5 {[%cal Rb5e8]}) 20... Re7 {[%emt 0:01:59]} 21. Bg5 {[%emt 0:00:14]} Rec7 {[%emt 0:00:46]} 22. Qa1 $14 {[%emt 0:03:44]} h6 {[%emt 0:07:44]} 23. Bh4 {[%emt 0:02:41]} g5 {[%emt 0:03:47]} 24. Bg3 {[%emt 0:00:01]} Re7 {[%emt 0:02:42]} 25. Qa5 {[%emt 0:04:48]} Bg7 {[%emt 0:07:34]} 26. Bb5 {[%emt 0:02:07]} Ra8 {[%emt 0:04:19]} 27. Rxa8 {[%emt 0:02:01]} Bxa8 {[%emt 0:00:12]} 28. Nc4 {[%emt 0:02:59]} Nfxd5 {[%emt 0:07:52]} 29. exd5 {[%emt 0:00:09]} Bxd5 {[%emt 0:02:08]} 30. Qxb6 {[%emt 0:02:50]} Rxe1+ {[%emt 0:02:57]} 31. Nxe1 {[%emt 0:00:50]} Qe7 {[%emt 0:00:09]} 32. Ng2 {[%emt 0:01:56]} Qe4 {[%emt 0:01:01]} 33. Nce3 {[%emt 0:00:02]} Bb7 {[%emt 0:02:04]} 34. Qd8+ {[%emt 0:05:23]} Kh7 {[%emt 0:00:08]} 35. Bd7 {[%emt 0:03:30]} Bf8 1-0

[Event "22nd Alekhine FIDE 2018"]
[Site "Voronezh"]
[Date "2018.06.18"]
[Round "7"]
[White "Lilov, Aleksandr"]
[Black "Kitaev, Roman"]
[Result "1-0"]
[ECO "D92"]
[WhiteElo "2046"]
[BlackElo "2031"]
[Annotator "NA RC"]
[PlyCount "54"]
[EventDate "2018.??.??"]
[EventType "swiss"]
[EventCountry "RUS"]
[SourceTitle "playchess.com"]
[Source "ChessBase"]
[SourceQuality "1"]
[TimeControl "5400+30"]

{[%evp 8,34,45,12,41,33,36,19,55,32,26,25,79,30,22,22,36,15,38,18,11,20,25,9,0,-21,-14,-40,-29]} 1. d4 {[%emt 0:00:00]} Nf6 {[%emt 0:00:09]} 2. Nf3 {[%emt 0:00:00]} g6 {[%emt 0:00:05]} 3. c4 {[%emt 0:00:21]} Bg7 {[%emt 0:00:16]} 4. Nc3 {[%emt 0:00:17]} d5 {[%emt 0:00:05]} 5. Bf4 {[%emt 0:02:32]} c6 {[%emt 0:00:17]} 6. e3 {[%emt 0:01:10]} O-O {[%emt 0:00:08]} 7. Bd3 {[%emt 0:01:32] LiveBook: 55 Games} b6 {[%emt 0:00:46] D93: Grünfeldindisch (5.Lf4)} (7... Bg4 8. h3 Bxf3 9. Qxf3 e6 10. O-O Nbd7 11. Rac1 Re8 12. Rfd1 a6 13. e4 dxe4 14. Nxe4 Nxe4 15. Bxe4 Qe7 16. Be3 Rad8 17. Bb1 Nb6 18. b3 Nc8 19. g4 {0-1 (60) Brown,M (2506)-Gabuzyan,H (2571) chess.com INT 2018}) 8. h3 {[%emt 0:05:59]} Bb7 {[%emt 0:00:11]} 9. O-O {[%emt 0:00:45]} Nbd7 {[%emt 0:00:10]} (9... c5 $11 {bleibt in der Remisbreite.}) 10. Qe2 $146 {[%emt 0:07:45]} ({Vorgänger:} 10. b4 dxc4 11. Bxc4 Nd5 12. Nxd5 cxd5 13. Bd3 Rc8 14. Qa4 a6 15. Rac1 b5 16. Rxc8 Qxc8 {1-0 (30) Pokorny,P (2218)-Kalista,K (2008) Rakovnik 2009}) 10... c5 {[%emt 0:01:29]} 11. Rfd1 {[%emt 0:01:54]} Rc8 {[%emt 0:02:26]} 12. Ne5 {[%emt 0:02:37]} cxd4 {[%emt 0:03:28]} 13. exd4 {[%emt 0:00:58]} e6 {[%emt 0:11:52]} 14. Nb5 {[%emt 0:09:56]} Nh5 {[%emt 0:08:16]} 15. Bh2 {[%emt 0:01:14]} dxc4 {[%emt 0:00:57]} 16. Be4 {[%emt 0:05:25]} Bxe4 {[%emt 0:05:19]} 17. Qxe4 $15 {[%emt 0:01:46]} Nhf6 {[%emt 0:00:10]} 18. Qb7 {[%emt 0:00:51]} Nxe5 {[%emt 0:01:35]} 19. Bxe5 {[%emt 0:06:53]} Qd5 {[%emt 0:07:56]} 20. Qxd5 {[%emt 0:00:25]} Nxd5 {[%emt 0:00:21]} 21. Nxa7 {[%emt 0:01:40]} Bxe5 {[%emt 0:01:36]} 22. dxe5 {[%emt 0:01:52]} Rc5 {[%emt 0:00:16]} 23. a4 {[%emt 0:02:05]} Ra8 {[%emt 0:03:33]} 24. Nb5 {[%emt 0:01:04]} Nb4 {[%emt 0:00:07]} 25. Nd6 {[%emt 0:00:50]} Nc6 {[%emt 0:01:03]} 26. f4 {[%emt 0:07:26]} Nb4 {[%emt 0:08:20]} 27. Ne4 Rc7 1-0

[Event "22nd Alekhine FIDE 2018"]
[Site "Voronezh"]
[Date "2018.06.18"]
[Round "7"]
[White "Artemov, Nikita"]
[Black "Kulpin, Dmitriy"]
[Result "1/2-1/2"]
[ECO "B47"]
[WhiteElo "1970"]
[BlackElo "1954"]
[Annotator "NA RC"]
[PlyCount "79"]
[EventDate "2018.??.??"]
[EventType "swiss"]
[EventCountry "RUS"]
[SourceTitle "playchess.com"]
[Source "ChessBase"]
[SourceQuality "1"]
[TimeControl "5400+30"]

1. e4 {[%emt 0:01:21]} c5 {[%emt 0:00:05]} 2. Nf3 {[%emt 0:00:07]} e6 {[%emt 0:00:04]} 3. d4 {[%emt 0:00:05]} cxd4 {[%emt 0:00:03]} 4. Nxd4 {[%emt 0:00:05]} Nc6 {[%emt 0:00:16]} 5. Nc3 {[%emt 0:00:38]} Qc7 {[%emt 0:00:08]} 6. Be2 {[%emt 0:00:40]} a6 {[%emt 0:00:16]} 7. O-O {[%emt 0:00:26]} Nf6 {[%emt 0:00:10]} 8. Kh1 {[%emt 0:01:32]} Be7 {[%emt 0:02:22]} 9. Be3 {[%emt 0:00:49]} d6 {[%emt 0:00:58]} 10. f4 {[%emt 0:00:11]} O-O {[%emt 0:03:09]} 11. Qe1 {[%emt 0:00:27]} b5 {[%emt 0:03:00]} 12. a3 {[%emt 0:00:16]} Bb7 {[%emt 0:00:22] LiveBook: 5 Games} 13. Bd3 {[%emt 0:01:19]} Ng4 {[%emt 0:05:47] B48: Sicilian: Taimanov: 5 Nc3 Qc7 6 Be3 a6 without Be2} (13... Rfe8 14. Qg3 Nd7 15. Qh3 Nf8 16. Rf2 Nxd4 17. Bxd4 e5 18. Be3 exf4 19. Bxf4 Bf6 20. Raf1 Bxc3 21. bxc3 {0-1 (36) Khrapko,M (2050)-Teterev,V (2487) Minsk 2017}) 14. Bg1 {[%emt 0:01:03]} Nxd4 {[%emt 0:04:36]} 15. Bxd4 {[%emt 0:00:11]} e5 $146 {[%emt 0:01:00]} ({Predecessor:} 15... Bf6 16. Bg1 Bxc3 17. bxc3 Qc6 18. Qg3 Nh6 19. f5 exf5 20. exf5 f6 21. Bd4 {1-0 (31) Braggaar,L (1837)-Harezlak,M (1641) Venlo 2007}) 16. Bg1 {[%emt 0:03:42]} exf4 {[%emt 0:01:23]} 17. Rxf4 {[%emt 0:01:08]} Ne5 {[%emt 0:00:21]} 18. Bd4 {[%emt 0:02:03]} Bg5 {[%emt 0:03:07]} 19. Rf5 {[%emt 0:03:22]} f6 {[%emt 0:00:39]} 20. Qg3 {[%emt 0:16:30]} g6 {[%emt 0:06:02]} 21. Rf2 {[%emt 0:01:49]} Qe7 $11 {[%emt 0:02:26]} 22. h4 {[%emt 0:08:01]} Bh6 {[%emt 0:00:20]} 23. Raf1 {[%emt 0:03:31]} Kg7 {[%emt 0:03:17]} 24. Nd1 {[%emt 0:06:57]} Bc8 {[%emt 0:01:42]} 25. Be3 {[%emt 0:04:48]} Be6 {[%emt 0:04:16]} 26. Bxh6+ {[%emt 0:01:51]} Kxh6 {[%emt 0:00:04]} 27. Ne3 {[%emt 0:01:00]} Rf7 {[%emt 0:01:57]} 28. Be2 {[%emt 0:07:24]} Raf8 {[%emt 0:01:31]} 29. Bg4 {[%emt 0:03:45]} Nxg4 {[%emt 0:01:06]} 30. Nxg4+ {[%emt 0:03:16]} Bxg4 {[%emt 0:00:14]} 31. Qxg4 {[%emt 0:00:13]} f5 {[%emt 0:05:56]} 32. exf5 {[%emt 0:02:38]} Rxf5 {[%emt 0:00:10]} 33. Rxf5 {[%emt 0:00:38]} Rxf5 {[%emt 0:00:05]} 34. Rxf5 {[%emt 0:00:35]} gxf5 {[%emt 0:00:04]} 35. Qf4+ {[%emt 0:06:32]} Kg6 {[%emt 0:01:29]} 36. h5+ {[%emt 0:00:27]} Kxh5 {[%emt 0:00:45]} 37. Qxf5+ {[%emt 0:00:17]} Kh4 {[%emt 0:01:41]} 38. Qf4+ {[%emt 0:00:32]} Kh5 {[%emt 0:00:10]} 39. Qf5+ {[%emt 0:00:32]} Kh4 {[%emt 0:00:07]} 40. Qf4+ {[%emt 0:00:04]} 1/2-1/2

[Event "22nd Alekhine FIDE 2018"]
[Site "Voronezh"]
[Date "2018.06.18"]
[Round "7"]
[White "Nakonechny, Ignat"]
[Black "Yakimenko, Alexander A"]
[Result "1/2-1/2"]
[ECO "C04"]
[WhiteElo "1890"]
[BlackElo "2094"]
[Annotator "NA RC"]
[PlyCount "102"]
[EventDate "2018.??.??"]
[EventType "swiss"]
[EventCountry "RUS"]
[SourceTitle "playchess.com"]
[Source "ChessBase"]
[SourceQuality "1"]
[TimeControl "5400+30"]

1. e4 {[%emt 0:00:00]} e6 {[%emt 0:00:13]} 2. d4 {[%emt 0:00:00]} d5 {[%emt 0:00:05]} 3. Nd2 {[%emt 0:00:00]} Nc6 {[%emt 0:00:05]} 4. Ngf3 {[%emt 0:00:00]} Nf6 {[%emt 0:00:08]} 5. e5 {[%emt 0:00:06]} Nd7 {[%emt 0:00:02]} 6. c3 {[%emt 0:00:07]} f6 {[%emt 0:01:33]} 7. exf6 {[%emt 0:00:30]} Qxf6 {[%emt 0:00:11]} 8. Bd3 {[%emt 0:00:40]} e5 {[%emt 0:04:21] C04: French Tarrasch: 3...Nc6} 9. O-O {[%emt 0:08:21]} Bd6 {[%emt 0:09:44] LiveBook: 3 Games} ({Black should play} 9... Be7 $14) 10. Qb3 {[%emt 0:03:45]} (10. Qc2 e4 11. Bxe4 dxe4 12. Nxe4 Qg6 13. Nxd6+ Qxd6 14. Re1+ Kf8 15. b4 Qg6 16. Qxg6 hxg6 {1-0 (27) Cukrowski,F (2372)-Stupak,K (2562) Bialystok 2016}) 10... Nb6 $146 {[%emt 0:07:52]} ({Predecessor:} 10... Ne7 11. Re1 h6 12. c4 exd4 13. cxd5 Nc5 14. Ne4 Nxe4 15. Rxe4 O-O 16. Rxd4 {0-1 (70) Liang,H (2131)-Stoleriu,G (2315) Montevideo 2017}) 11. dxe5 {[%emt 0:02:36]} Nxe5 {[%emt 0:15:12]} 12. Nxe5 {[%emt 0:01:35]} Bxe5 {[%emt 0:02:12]} 13. Nf3 {[%emt 0:04:18]} O-O {[%emt 0:01:58]} 14. Bg5 {[%emt 0:38:11]} Qd6 {[%emt 0:00:48]} 15. Rfe1 {[%emt 0:05:52]} Rxf3 {[%emt 0:06:38]} 16. gxf3 {[%emt 0:00:11]} Bh3 {[%emt 0:00:22]} 17. Qb4 {[%emt 0:01:55]} Bxh2+ {[%emt 0:03:20]} 18. Kh1 {[%emt 0:00:23]} Qxb4 {[%emt 0:01:17]} 19. cxb4 {[%emt 0:00:10]} Bd6 {[%emt 0:00:20]} 20. a3 {[%emt 0:03:07]} Kf7 {[%emt 0:04:39]} 21. Bh4 {[%emt 0:02:19]} c6 {[%emt 0:06:47]} 22. Re2 {[%emt 0:00:16]} g6 {[%emt 0:07:11]} 23. Rae1 {[%emt 0:00:09]} Nc4 {[%emt 0:00:33]} 24. Bg3 {[%emt 0:16:00]} Bf8 {[%emt 0:01:05]} 25. Bxc4 {[%emt 0:02:58]} dxc4 {[%emt 0:00:09]} 26. Re4 {[%emt 0:00:29]} Bf5 {[%emt 0:03:12]} 27. Rxc4 {[%emt 0:00:07]} Rd8 {[%emt 0:02:50]} 28. b5 {[%emt 0:02:07]} cxb5 {[%emt 0:07:25]} 29. Rc7+ {[%emt 0:00:05]} Rd7 {[%emt 0:00:12]} 30. Rec1 {[%emt 0:01:29]} a5 {[%emt 0:00:43]} 31. Rxd7+ {[%emt 0:00:12]} Bxd7 {[%emt 0:00:02]} 32. Rc7 {[%emt 0:00:08]} Ke6 {[%emt 0:01:11]} 33. Rxb7 {[%emt 0:00:05]} a4 {[%emt 0:03:54]} 34. Kg2 {[%emt 0:03:15]} Bg7 {[%emt 0:00:38]} 35. Rb6+ {[%emt 0:01:12]} Ke7 {[%emt 0:03:48]} 36. Bh4+ {[%emt 0:00:29]} Kf7 {[%emt 0:01:35]} 37. Rd6 {[%emt 0:00:12]} Be6 {[%emt 0:00:13]} 38. Rd2 {[%emt 0:00:09]} Bh6 {[%emt 0:01:49]} 39. Rc2 {[%emt 0:00:56]} Bc4 {[%emt 0:00:19]} 40. Bd8 {[%emt 0:01:03]} Bf4 {[%emt 0:00:24]} 41. Ba5 {[%emt 0:00:17]} Ke6 $16 {[%emt 0:00:31]} 42. Bb6 {[%emt 0:02:58]} Be5 {[%emt 0:02:45]} 43. Rd2 {[%emt 0:01:06]} Kf5 {[%emt 0:00:22]} 44. Bd4 {[%emt 0:00:30]} Bf4 {[%emt 0:00:05]} 45. Rd1 {[%emt 0:00:31]} h5 {[%emt 0:00:19]} 46. Re1 {[%emt 0:00:25]} g5 {[%emt 0:01:34]} 47. Re8 {[%emt 0:00:27]} Bd5 {[%emt 0:01:28]} 48. Rf8+ {[%emt 0:00:18]} Ke6 {[%emt 0:00:23]} 49. Rf6+ {[%emt 0:00:34]} Ke7 {[%emt 0:00:15] [#]} 50. Rb6 $1 {[%emt 0:00:20]} g4 {[%emt 0:00:43]} 51. Rxb5 {[%emt 0:00:32]} Bxf3+ {[%emt 0:00:37]} 1/2-1/2

[Event "22nd Alekhine FIDE 2018"]
[Site "Voronezh"]
[Date "2018.06.19"]
[Round "8"]
[White "Popelyshev, Igor V"]
[Black "Tikhonov, Viacheslav"]
[Result "0-1"]
[ECO "C00"]
[WhiteElo "2095"]
[BlackElo "1993"]
[Annotator "NA RC"]
[PlyCount "59"]
[EventDate "2018.??.??"]
[EventType "swiss"]
[EventCountry "RUS"]
[SourceTitle "playchess.com"]
[Source "ChessBase"]
[SourceQuality "1"]
[TimeControl "5400+30"]

{[%evp 8,57,-15,-23,-14,-12,-12,0,0,-10,0,0,0,-25,32767,32767,-4,-17,-34,-68,-37,-92,-84,-94,-52,-47,32767,32767,32767,32767,32767,32767,32767,32767,32767,32767,32767,32767,32767,32767,32767,32767,32767,32767,32767,32767,32767,-235,-269,32767,32767,-323]} 1. e4 e6 2. Qe2 c5 3. g3 Nc6 4. c3 g6 5. d3 Bg7 6. Bg2 Nge7 7. f4 d6 8. Nf3 O-O 9. O-O {LiveBook: 21 Games} b6 10. Nbd2 Ba6 11. Rd1 Qd7 12. Nf1 Rad8 13. Be3 f5 14. c4 (14. Qc2 $15) 14... fxe4 15. dxe4 d5 16. Rac1 Nc8 17. e5 Qe8 18. b3 Na5 19. Bd2 Nc6 20. Bc3 h6 21. Qc2 dxc4 22. bxc4 Bxc4 23. Ne3 Bd5 24. Nxd5 exd5 25. Nh4 N8e7 26. Qb3 Qf7 27. Rc2 $2 (27. Rf1 $15) 27... g5 28. fxg5 hxg5 29. Rf1 $19 Qe6 30. Nf3 0-1

[Event "22nd Alekhine FIDE 2018"]
[Site "Voronezh"]
[Date "2018.06.19"]
[Round "8"]
[White "Yakimenko, Alexander A"]
[Black "Tverdokhleb, Aleksandr"]
[Result "1/2-1/2"]
[ECO "C44"]
[WhiteElo "2094"]
[BlackElo "1889"]
[Annotator "NA RC"]
[PlyCount "94"]
[EventDate "2018.??.??"]
[EventType "swiss"]
[EventCountry "RUS"]
[SourceTitle "playchess.com"]
[Source "ChessBase"]
[SourceQuality "1"]
[TimeControl "5400+30"]

1. e4 Nf6 2. d3 d5 3. Nd2 e5 4. Ngf3 Nc6 {LiveBook: 109 Games} 5. Be2 Bg4 6. c3 Be7 7. Qc2 h6 8. O-O O-O 9. Re1 Be6 10. b4 a6 11. Bb2 d4 12. a3 dxc3 13. Qxc3 Nd7 14. Rad1 a5 15. b5 Nd4 $1 16. Nxd4 exd4 17. Qc1 ({Avoid the trap} 17. Qxd4 $2 Bf6 $19) 17... Nc5 18. f4 a4 19. Nc4 Nb3 20. Qc2 Bd7 21. Nd2 Bxb5 22. e5 Nxd2 23. Qxd2 c5 24. Bf3 Qc7 25. Qf2 Bc6 26. Bg4 b5 27. f5 Bg5 28. Bc1 Qd8 29. f6 gxf6 30. e6 fxe6 31. Bxe6+ Kh8 32. h4 Bxc1 33. Rxc1 Qd6 34. Qf5 (34. Qd2) 34... Qg3 35. Bd5 $19 Bxd5 36. Qxd5 Rae8 37. Rf1 Re2 38. Qf5 Ree8 39. Qd5 Re2 40. Qc6 Rg8 41. Qxf6+ Qg7 42. Qxg7+ Rxg7 43. Rf2 Re5 44. Rf6 Kh7 45. Rb6 Re2 46. Rxc5 Rgxg2+ 47. Kf1 Rgf2+ {Ke1} 1/2-1/2

[Event "22nd Alekhine FIDE 2018"]
[Site "Voronezh"]
[Date "2018.06.19"]
[Round "8"]
[White "Bobkov, Vadim"]
[Black "Zaitseva, Lyudmila"]
[Result "1-0"]
[ECO "A40"]
[WhiteElo "2058"]
[BlackElo "1954"]
[Annotator "NA RC"]
[PlyCount "103"]
[EventDate "2018.??.??"]
[EventType "swiss"]
[EventCountry "RUS"]
[SourceTitle "playchess.com"]
[Source "ChessBase"]
[SourceQuality "1"]
[TimeControl "5400+30"]

{[%evp 8,102,22,32767,32767,32767,17,32767,10,32767,-12,-30,-6,-11,-12,-11,-6,5,20,-8,0,3,5,6,23,0,0,0,-6,0,-14,-8,32767,-39,0,32767,32767,32767,32767,32767,32767,32767,32767,32767,32767,32767,32767,32767,32767,32767,122,127,133,32767,32767,32767,32767,32767,32767,32767,32767,32767,153,120,128,119,111,109,125,102,96,114,126,115,150,150,32767,32767,32767,32767,32767,234,372,302,426,420,5102,5097,5917,5122,5181,32767,32767,32767,32767,32767,12846]} 1. d4 {[%emt 0:00:00]} Nf6 {[%emt 0:00:07]} 2. c4 {[%emt 0:00:00]} e6 {[%emt 0:00:08]} 3. g3 {[%emt 0:00:00]} b6 {[%emt 0:00:14]} 4. Bg2 {[%emt 0:00:00]} d5 {[%emt 0:00:16]} 5. Nf3 {[%emt 0:01:55]} Bb7 {[%emt 0:00:45]} 6. O-O {[%emt 0:00:31]} Be7 {[%emt 0:00:22] LiveBook: 158 Games} 7. Nbd2 {[%emt 0:00:36]} O-O {[%emt 0:00:29]} 8. Qc2 {[%emt 0:00:09]} Nbd7 {[%emt 0:02:21]} 9. cxd5 {[%emt 0:02:17]} exd5 {[%emt 0:00:24]} 10. b3 {[%emt 0:00:39]} c5 {[%emt 0:01:42]} 11. dxc5 {[%emt 0:00:16]} bxc5 {[%emt 0:00:13]} 12. Bb2 {[%emt 0:00:03]} Rc8 {[%emt 0:04:25]} 13. Rac1 {[%emt 0:00:15]} Qb6 {[%emt 0:07:07]} 14. Rfd1 {[%emt 0:00:49]} Rfd8 {[%emt 0:04:11]} 15. e3 {[%emt 0:03:29]} Nf8 {[%emt 0:11:46]} 16. Qb1 {[%emt 0:02:42]} Ne6 {[%emt 0:03:42]} 17. Qa1 {[%emt 0:00:47]} Ne8 {[%emt 0:15:51]} 18. Ne5 {[%emt 0:07:11]} Bf6 {[%emt 0:16:21]} 19. Ndf3 {[%emt 0:12:49]} Nd6 {[%emt 0:06:04]} 20. Ne1 {[%emt 0:25:24] [#]} d4 $1 21. exd4 {[%emt 0:00:30]} cxd4 {[%emt 0:18:30]} 22. Rxc8 {[%emt 0:00:57]} Rxc8 {[%emt 0:00:48]} 23. Nd7 {[%emt 0:01:09]} Qd8 {[%emt 0:09:30]} 24. Nxf6+ {[%emt 0:00:02]} Qxf6 {[%emt 0:00:14]} 25. Bxb7 {[%emt 0:03:42]} Nxb7 {[%emt 0:00:15]} 26. Bxd4 {[%emt 0:00:08]} Nxd4 {[%emt 0:00:40]} 27. Qxd4 {[%emt 0:00:08]} Qxd4 {[%emt 0:06:10]} 28. Rxd4 {[%emt 0:00:00]} Rc7 {[%emt 0:01:24]} 29. Nd3 {[%emt 0:01:53]} f6 {[%emt 0:00:30]} 30. Kg2 {[%emt 0:00:30]} Kf7 {[%emt 0:00:30]} 31. Kf3 {[%emt 0:00:30]} Ke7 {[%emt 0:00:30]} 32. Rc4 {[%emt 0:00:30]} Rd7 {[%emt 0:00:30]} 33. Nc5 {[%emt 0:00:30]} Nxc5 {[%emt 0:00:30]} 34. Rxc5 {[%emt 0:00:30]} Kd6 {[%emt 0:00:30]} 35. Rc2 {[%emt 0:00:30]} Re7 {[%emt 0:00:30]} 36. Re2 {[%emt 0:00:30]} Rc7 {[%emt 0:00:30]} 37. Rd2+ {[%emt 0:00:30]} Ke5 {[%emt 0:00:30]} 38. Ke3 {[%emt 0:00:30]} Rc3+ {[%emt 0:00:30]} 39. Rd3 {[%emt 0:00:30]} Rc7 {[%emt 0:00:30]} 40. b4 {[%emt 0:00:30]} g6 {[%emt 0:00:30]} 41. b5 {[%emt 0:00:30]} Rd7 {[%emt 0:04:00]} 42. Rd2 {[%emt 0:05:37]} Rc7 {[%emt 0:00:58]} 43. Rd3 {[%emt 0:03:02]} Rc2 {[%emt 0:02:12]} 44. Ra3 {[%emt 0:00:24]} Rc5 $2 {[%emt 0:01:03]} (44... Rc7 {might work better.} 45. Ra6 f5) 45. Ra5 {[%emt 0:01:25]} ({Schwächer ist} 45. Rxa7 Rxb5 46. Rxh7 Ra5 $16) 45... a6 {[%emt 0:01:29]} 46. a4 {[%emt 0:00:53]} axb5 (46... Rc3+ $142 47. Kd2 Kd4 48. bxa6 Rc8) 47. Rxb5 {[%emt 0:00:01]} Rxb5 {[%emt 0:01:08]} 48. axb5 {[%emt 0:00:00]} Kd5 {[%emt 0:00:14]} 49. b6 {[%emt 0:00:36]} Kc6 {[%emt 0:00:01]} 50. Ke4 {[%emt 0:00:10]} Kxb6 {[%emt 0:00:02]} 51. Kd5 {[%emt 0:00:00]} Kb5 $18 {[%emt 0:00:50]} 52. Ke6 {[%emt 0:00:43]} 1-0

[Event "22nd Alekhine FIDE 2018"]
[Site "Voronezh"]
[Date "2018.06.19"]
[Round "8"]
[White "Ilyina, Lada"]
[Black "Kuzmin, Roman"]
[Result "1-0"]
[ECO "B20"]
[WhiteElo "2031"]
[BlackElo "1963"]
[Annotator "NA RC"]
[PlyCount "85"]
[EventDate "2018.??.??"]
[EventType "swiss"]
[EventCountry "RUS"]
[SourceTitle "playchess.com"]
[Source "ChessBase"]
[SourceQuality "1"]
[TimeControl "5400+30"]

{[%evp 10,74,-6,32767,32767,-7,12,16,5,-33,0,-29,38,32767,81,62,32767,106,156,189,316,356,333,-13,-8,-4,10,-8,44,47,142,65,64,40,246,235,225,247,383,381,372,387,385,402,32767,32767,389,427,409,401,32767,393,32767,421,32767,414,412,437,300,525,566,583,653,719,657,883,841]} 1. e4 {[%emt 0:00:00]} c5 {[%emt 0:00:05]} 2. d3 {[%emt 0:00:00]} e6 {[%emt 0:00:10]} 3. g3 {[%emt 0:00:00]} Nc6 {[%emt 0:00:18]} 4. Bg2 {[%emt 0:00:01]} d5 {[%emt 0:01:18]} 5. Nd2 {[%emt 0:00:11]} Nf6 {[%emt 0:00:23] LiveBook: 265 Games} 6. f4 {[%emt 0:00:06]} dxe4 {[%emt 0:02:05]} 7. Nxe4 {[%emt 0:02:42]} Nxe4 {[%emt 0:04:33]} 8. Bxe4 {[%emt 0:01:29]} Qc7 {[%emt 0:00:29]} 9. Ne2 {[%emt 0:02:43]} Bd6 {[%emt 0:04:28]} 10. Be3 {[%emt 0:02:57]} e5 {[%emt 0:01:53]} 11. f5 {[%emt 0:01:32]} Nd4 {[%emt 0:00:12]} 12. O-O {[%emt 0:01:33]} g6 {[%emt 0:02:29]} 13. Nxd4 {[%emt 0:12:18]} exd4 {[%emt 0:01:48] [#]} 14. Bg5 $1 {[%emt 0:04:01]} Bxg3 {[%emt 0:25:26]} (14... O-O {is a better defense.}) 15. Qe2 {[%emt 0:03:17]} Be5 {[%emt 0:00:41]} 16. Bc6+ $2 {[%emt 0:16:27]} (16. Rae1 $18) 16... bxc6 {[%emt 0:01:19]} 17. Bf6 {[%emt 0:00:09]} O-O {[%emt 0:00:10]} 18. Bxe5 {[%emt 0:00:27]} Re8 {[%emt 0:00:51]} 19. Rae1 {[%emt 0:00:29]} Qe7 {[%emt 0:00:11] [#]} (19... Qd7 $1 $14 20. Qd2 f6 21. Bxf6 Rxe1 22. Qxe1 Qf7 23. fxg6 Qxg6+ 24. Qg3 Qxg3+ 25. hxg3 Be6) 20. Qg2 {[%emt 0:00:54]} (20. Qd2 $1 $16 {[%cal Rd2h6]} Qh4 21. Bg3) 20... Bd7 {[%emt 0:04:26]} 21. Re4 {[%emt 0:03:21]} Qf8 $2 {[%emt 0:03:06] [#]} (21... Qxe5 $11 {and Black stays safe.} 22. Rxe5 Rxe5) 22. fxg6 $1 {[%emt 0:00:43]} hxg6 {[%emt 0:00:03]} 23. Qg5 {[%emt 0:00:37]} Re6 {[%emt 0:05:56]} (23... Rxe5 $142 24. Rxe5 Re8) 24. Rh4 {[%emt 0:01:44]} Rxe5 {[%emt 0:00:09]} 25. Qxe5 {[%emt 0:00:07]} Qg7 {[%emt 0:00:05]} 26. Qxc5 {[%emt 0:01:32]} Re8 {[%emt 0:00:34]} 27. Qxd4 {[%emt 0:01:28]} Qxd4+ {[%emt 0:00:47]} 28. Rxd4 {[%emt 0:00:06]} Bh3 {[%emt 0:00:02]} 29. Rf3 {[%emt 0:00:16]} Be6 {[%emt 0:00:37]} 30. c4 {[%emt 0:00:44]} c5 {[%emt 0:00:11]} 31. Rd6 {[%emt 0:00:18]} Bg4 {[%emt 0:00:10]} 32. Rf2 {[%emt 0:01:44]} Bh3 {[%emt 0:00:05]} 33. Rd2 {[%emt 0:00:14]} Re1+ {[%emt 0:00:30]} 34. Kf2 {[%emt 0:00:03]} Ra1 {[%emt 0:00:04]} 35. b3 {[%emt 0:00:30]} g5 {[%emt 0:00:04]} 36. Rd5 {[%emt 0:00:39]} g4 {[%emt 0:01:12]} 37. Rxc5 $18 {[%emt 0:00:18]} f5 {[%emt 0:00:10]} 38. Kg3 {[%emt 0:02:32]} Rg1+ {[%emt 0:00:09]} 39. Kf4 {[%emt 0:00:27]} Rf1+ {[%emt 0:00:04]} 40. Kg5 {[%emt 0:00:07]} f4 {[%emt 0:00:03]} 41. Kg6 {[%emt 0:00:09]} g3 {[%emt 0:00:04]} 42. Re2 {[%emt 0:00:48]} Bd7 {[%emt 0:01:29]} 43. Rc8+ {[%emt 0:01:05]} 1-0